[Event "Titled Tuesday Blitz March 07 Early 2023"]
[White "Smirnov, Pavel"]
[Black "Demchenko, Anton"]
[WhiteFideId "4123425"]
[BlackFideId "4160258"]
[WhiteElo "2519"]
[BlackElo "2545"]
[Result "0-1"]
[Round "09"]
[TimeControl "180+2"]
[Date "2023.03.07"]
[WhiteClock "0:00:03"]
[BlackClock "0:00:10"]

1. d4 {[%clk 0:03:00]}  Nf6 {[%clk 0:02:54]} 2. c4 {[%clk 0:03:00]}  d6 {[%clk 0:02:55]} 3. Nf3 {[%clk 0:03:00]}  Nc6 {[%clk 0:02:54]} 4. Nc3 {[%clk 0:02:54]}  e5 {[%clk 0:02:55]} 5. e3 {[%clk 0:02:42]}  Be7 {[%clk 0:02:51]} 6. Be2 {[%clk 0:02:41]}  O-O {[%clk 0:02:52]} 7. O-O {[%clk 0:02:41]}  h6 {[%clk 0:02:50]} 8. b3 {[%clk 0:02:39]}  Bf5 {[%clk 0:02:50]} 9. Bb2 {[%clk 0:02:38]}  Re8 {[%clk 0:02:50]} 10. Rc1 {[%clk 0:02:35]}  Bf8 {[%clk 0:02:49]} 11. Re1 {[%clk 0:02:29]}  a6 {[%clk 0:02:36]} 12. a3 {[%clk 0:02:27]}  e4 {[%clk 0:02:27]} 13. Nd2 {[%clk 0:02:26]}  Ne7 {[%clk 0:02:28]} 14. Nf1 {[%clk 0:02:21]}  c6 {[%clk 0:02:10]} 15. d5 {[%clk 0:02:09]}  cxd5 {[%clk 0:02:08]} 16. cxd5 {[%clk 0:02:08]}  Bg6 {[%clk 0:02:05]} 17. Ng3 {[%clk 0:02:02]}  Rc8 {[%clk 0:01:48]} 18. b4 {[%clk 0:01:58]}  Qd7 {[%clk 0:01:37]} 19. Qd2 {[%clk 0:01:52]}  h5 {[%clk 0:01:36]} 20. h3 {[%clk 0:01:50]}  h4 {[%clk 0:01:34]} 21. Nf1 {[%clk 0:01:50]}  Rc7 {[%clk 0:01:24]} 22. b5 {[%clk 0:01:43]}  Rc5 {[%clk 0:01:12]} 23. bxa6 {[%clk 0:01:32]}  bxa6 {[%clk 0:01:13]} 24. Bxa6 {[%clk 0:01:32]}  Ra8 {[%clk 0:01:04]} 25. Be2 {[%clk 0:01:26]}  Nfxd5 {[%clk 0:01:04]} 26. Nxd5 {[%clk 0:01:24]}  Rxd5 {[%clk 0:01:05]} 27. Qb4 {[%clk 0:01:19]}  Rg5 {[%clk 0:01:01]} 28. Bg4 {[%clk 0:00:58]}  Qd8 {[%clk 0:00:35]} 29. Nh2 {[%clk 0:00:49]}  Nd5 {[%clk 0:00:33]} 30. Qd2 {[%clk 0:00:48]}  Nf6 {[%clk 0:00:33]} 31. Be2 {[%clk 0:00:44]}  Qd7 {[%clk 0:00:33]} 32. Kh1 {[%clk 0:00:41]}  d5 {[%clk 0:00:27]} 33. f4 {[%clk 0:00:36]}  exf3 {[%clk 0:00:26]} 34. Nxf3 {[%clk 0:00:31]}  Ne4 {[%clk 0:00:27]} 35. Qd4 {[%clk 0:00:27]}  Rg3 {[%clk 0:00:25]} 36. Ne5 {[%clk 0:00:23]}  Qe6 {[%clk 0:00:17]} 37. Nxg6 {[%clk 0:00:15]}  Qxg6 {[%clk 0:00:17]} 38. Bf3 {[%clk 0:00:10]}  Nf2+ {[%clk 0:00:13]} 39. Kh2 {[%clk 0:00:10]}  Rxf3 {[%clk 0:00:13]} 40. Qxh4 {[%clk 0:00:07]}  Rf5 {[%clk 0:00:12]} 41. Rf1 {[%clk 0:00:05]}  Ne4 {[%clk 0:00:12]} 42. Rxf5 {[%clk 0:00:04]}  Qxf5 {[%clk 0:00:13]} 43. Bd4 {[%clk 0:00:04]}  Rb8 {[%clk 0:00:12]} 44. Rc6 {[%clk 0:00:03]}  Bd6+ {[%clk 0:00:11]} 45. Kg1 {[%clk 0:00:03]}  Rb1+ {[%clk 0:00:10]} 0-1


[Site "https://www.chess.com"]

[Event "Titled Tuesday Blitz March 07 Early 2023"]
[White "Terry, Renato"]
[Black "Real_OceanStorm"]
[WhiteFideId "3803457"]
[WhiteElo "2579"]
[BlackElo "2771"]
[Result "1-0"]
[Round "09"]
[TimeControl "180+2"]
[Date "2023.03.07"]
[WhiteClock "0:00:10"]
[BlackClock "0:00:03"]

1. e4 {[%clk 0:03:00]}  c5 {[%clk 0:02:54]} 2. Nf3 {[%clk 0:03:01]}  Nc6 {[%clk 0:02:54]} 3. Bb5 {[%clk 0:03:01]}  g6 {[%clk 0:02:49]} 4. c3 {[%clk 0:02:59]}  Nf6 {[%clk 0:02:47]} 5. e5 {[%clk 0:02:57]}  Nd5 {[%clk 0:02:46]} 6. O-O {[%clk 0:02:53]}  Bg7 {[%clk 0:02:40]} 7. Re1 {[%clk 0:02:52]}  O-O {[%clk 0:02:38]} 8. h3 {[%clk 0:02:44]}  d6 {[%clk 0:02:37]} 9. exd6 {[%clk 0:02:37]}  exd6 {[%clk 0:02:36]} 10. d4 {[%clk 0:02:32]}  cxd4 {[%clk 0:02:11]} 11. Bxc6 {[%clk 0:02:32]}  bxc6 {[%clk 0:02:11]} 12. Nxd4 {[%clk 0:02:33]}  Bb7 {[%clk 0:02:05]} 13. Na3 {[%clk 0:02:29]}  Rc8 {[%clk 0:01:47]} 14. Qa4 {[%clk 0:02:23]}  c5 {[%clk 0:01:38]} 15. Ndc2 {[%clk 0:02:12]}  Nb6 {[%clk 0:01:27]} 16. Qg4 {[%clk 0:02:07]}  h5 {[%clk 0:01:12]} 17. Qg3 {[%clk 0:02:06]}  Be5 {[%clk 0:01:11]} 18. Bf4 {[%clk 0:02:04]}  Nd7 {[%clk 0:00:55]} 19. Rad1 {[%clk 0:02:01]}  h4 {[%clk 0:00:51]} 20. Qg4 {[%clk 0:01:55]}  Bxf4 {[%clk 0:00:50]} 21. Qxf4 {[%clk 0:01:55]}  d5 {[%clk 0:00:49]} 22. Ne3 {[%clk 0:01:50]}  Re8 {[%clk 0:00:48]} 23. Ng4 {[%clk 0:01:48]}  Rxe1+ {[%clk 0:00:47]} 24. Rxe1 {[%clk 0:01:49]}  Bc6 {[%clk 0:00:48]} 25. Nh6+ {[%clk 0:01:41]}  Kg7 {[%clk 0:00:43]} 26. Nxf7 {[%clk 0:01:08]}  Qf8 {[%clk 0:00:37]} 27. Ng5 {[%clk 0:01:05]}  Qxf4 {[%clk 0:00:32]} 28. Ne6+ {[%clk 0:01:05]}  Kf6 {[%clk 0:00:16]} 29. Nxf4 {[%clk 0:01:06]}  g5 {[%clk 0:00:16]} 30. Nd3 {[%clk 0:01:02]}  c4 {[%clk 0:00:16]} 31. Nb4 {[%clk 0:01:02]}  a5 {[%clk 0:00:15]} 32. Nbc2 {[%clk 0:00:55]}  Ne5 {[%clk 0:00:15]} 33. Nd4 {[%clk 0:00:54]}  Bd7 {[%clk 0:00:15]} 34. Re3 {[%clk 0:00:42]}  Nd3 {[%clk 0:00:10]} 35. b3 {[%clk 0:00:42]}  cxb3 {[%clk 0:00:08]} 36. axb3 {[%clk 0:00:34]}  Nc5 {[%clk 0:00:05]} 37. c4 {[%clk 0:00:30]}  dxc4 {[%clk 0:00:05]} 38. Nxc4 {[%clk 0:00:31]}  Nxb3 {[%clk 0:00:04]} 39. Rf3+ {[%clk 0:00:27]}  Ke7 {[%clk 0:00:04]} 40. Re3+ {[%clk 0:00:23]}  Kf6 {[%clk 0:00:04]} 41. Nxb3 {[%clk 0:00:19]}  Rxc4 {[%clk 0:00:04]} 42. Nxa5 {[%clk 0:00:20]}  Rc5 {[%clk 0:00:04]} 43. Nb3 {[%clk 0:00:20]}  Rd5 {[%clk 0:00:04]} 44. Rf3+ {[%clk 0:00:20]}  Ke5 {[%clk 0:00:04]} 45. Re3+ {[%clk 0:00:19]}  Kd6 {[%clk 0:00:04]} 46. Kh2 {[%clk 0:00:13]}  Bc6 {[%clk 0:00:04]} 47. Re2 {[%clk 0:00:11]}  Rd1 {[%clk 0:00:04]} 48. Nd2 {[%clk 0:00:09]}  Kd7 {[%clk 0:00:03]} 49. Nc4 {[%clk 0:00:09]}  Bb5 {[%clk 0:00:03]} 50. Ne5+ {[%clk 0:00:10]}  Ke6 {[%clk 0:00:02]} 51. Re3 {[%clk 0:00:11]}  Rd5 {[%clk 0:00:01]} 52. Ng4+ {[%clk 0:00:09]}  Kf7 {[%clk 0:00:01]} 53. Rf3+ {[%clk 0:00:09]}  Ke7 {[%clk 0:00:02]} 54. Re3+ {[%clk 0:00:09]}  Kd6 {[%clk 0:00:02]} 55. Rb3 {[%clk 0:00:10]}  Kd7 {[%clk 0:00:03]} 56. Nf6+ {[%clk 0:00:10]} 1-0


[Site "https://www.chess.com"]

[Event "Titled Tuesday Blitz March 07 Early 2023"]
[White "Csonka, Balazs"]
[Black "Steinberg, Nitzan"]
[WhiteFideId "742910"]
[BlackFideId "2801795"]
[WhiteElo "2404"]
[BlackElo "2486"]
[Result "0-1"]
[Round "09"]
[TimeControl "180+2"]
[Date "2023.03.07"]
[WhiteClock "0:00:02"]
[BlackClock "0:00:06"]

1. d4 {[%clk 0:03:00]}  Nf6 {[%clk 0:03:00]} 2. c4 {[%clk 0:02:57]}  g6 {[%clk 0:03:00]} 3. Nc3 {[%clk 0:02:57]}  Bg7 {[%clk 0:03:01]} 4. e4 {[%clk 0:02:56]}  d6 {[%clk 0:03:01]} 5. Be2 {[%clk 0:02:56]}  O-O {[%clk 0:03:02]} 6. Nf3 {[%clk 0:02:57]}  c5 {[%clk 0:03:03]} 7. d5 {[%clk 0:02:50]}  a6 {[%clk 0:03:03]} 8. O-O {[%clk 0:02:48]}  b5 {[%clk 0:03:03]} 9. cxb5 {[%clk 0:02:47]}  axb5 {[%clk 0:03:04]} 10. Bxb5 {[%clk 0:02:47]}  Nfd7 {[%clk 0:03:04]} 11. a4 {[%clk 0:02:36]}  Na6 {[%clk 0:03:01]} 12. Ra3 {[%clk 0:02:28]}  Nb4 {[%clk 0:03:01]} 13. Na2 {[%clk 0:02:13]}  Ba6 {[%clk 0:02:55]} 14. Nxb4 {[%clk 0:01:58]}  cxb4 {[%clk 0:02:55]} 15. Rb3 {[%clk 0:01:57]}  Bxb5 {[%clk 0:02:41]} 16. axb5 {[%clk 0:01:58]}  Ra4 {[%clk 0:02:33]} 17. Nd4 {[%clk 0:01:41]}  Qb6 {[%clk 0:02:31]} 18. Nc6 {[%clk 0:01:25]}  Qxb5 {[%clk 0:02:29]} 19. Nxe7+ {[%clk 0:01:24]}  Kh8 {[%clk 0:02:29]} 20. Bf4 {[%clk 0:01:03]}  Nc5 {[%clk 0:02:01]} 21. Re3 {[%clk 0:00:50]}  Qd7 {[%clk 0:02:01]} 22. Nc6 {[%clk 0:00:46]}  b3 {[%clk 0:02:01]} 23. Qe2 {[%clk 0:00:39]}  Re8 {[%clk 0:01:56]} 24. f3 {[%clk 0:00:34]}  h5 {[%clk 0:01:45]} 25. h3 {[%clk 0:00:29]}  Ra2 {[%clk 0:01:44]} 26. e5 {[%clk 0:00:26]}  Rea8 {[%clk 0:01:10]} 27. Rc1 {[%clk 0:00:20]}  Qf5 {[%clk 0:01:08]} 28. Bg3 {[%clk 0:00:16]}  Ra1 {[%clk 0:01:08]} 29. Rxa1 {[%clk 0:00:15]}  Rxa1+ {[%clk 0:01:08]} 30. Kh2 {[%clk 0:00:15]}  dxe5 {[%clk 0:00:27]} 31. Nxe5 {[%clk 0:00:13]}  Kg8 {[%clk 0:00:21]} 32. Nd3 {[%clk 0:00:10]}  Qxd5 {[%clk 0:00:15]} 33. Nxc5 {[%clk 0:00:06]}  Qxc5 {[%clk 0:00:16]} 34. Bf2 {[%clk 0:00:05]}  Qc7+ {[%clk 0:00:13]} 35. g3 {[%clk 0:00:05]}  Qc2 {[%clk 0:00:12]} 36. Kg2 {[%clk 0:00:02]}  Bxb2 {[%clk 0:00:11]} 37. Re8+ {[%clk 0:00:02]}  Kh7 {[%clk 0:00:11]} 38. Qe7 {[%clk 0:00:02]}  Qf5 {[%clk 0:00:08]} 39. Qf8 {[%clk 0:00:02]}  Bg7 {[%clk 0:00:05]} 40. Qg8+ {[%clk 0:00:02]}  Kh6 {[%clk 0:00:06]} 41. Be3+ {[%clk 0:00:03]}  g5 {[%clk 0:00:06]} 42. h4 {[%clk 0:00:02]}  Ra2+ {[%clk 0:00:06]} 43. Kf1 {[%clk 0:00:02]} 0-1


[Site "https://www.chess.com"]

[Event "Titled Tuesday Blitz March 07 Early 2023"]
[White "Madaminov, Mukhiddin"]
[Black "Fernandez Guillen, Ernesto J."]
[WhiteFideId "14210703"]
[BlackFideId "3512428"]
[WhiteElo "2511"]
[BlackElo "2423"]
[Result "1-0"]
[Round "09"]
[TimeControl "180+2"]
[Date "2023.03.07"]
[WhiteClock "0:01:29"]
[BlackClock "0:00:09"]

1. d4 {[%clk 0:03:00]}  Nf6 {[%clk 0:02:47]} 2. Nc3 {[%clk 0:02:58]}  d5 {[%clk 0:02:46]} 3. Bf4 {[%clk 0:02:58]}  g6 {[%clk 0:02:26]} 4. Qd2 {[%clk 0:02:58]}  Bg7 {[%clk 0:02:24]} 5. O-O-O {[%clk 0:02:56]}  O-O {[%clk 0:02:14]} 6. Bh6 {[%clk 0:02:54]}  Ne4 {[%clk 0:02:12]} 7. Nxe4 {[%clk 0:02:53]}  dxe4 {[%clk 0:02:13]} 8. Bxg7 {[%clk 0:02:52]}  Kxg7 {[%clk 0:02:11]} 9. e3 {[%clk 0:02:47]}  e5 {[%clk 0:01:54]} 10. Qc3 {[%clk 0:02:24]}  exd4 {[%clk 0:00:54]} 11. Rxd4 {[%clk 0:02:23]}  Qf6 {[%clk 0:00:54]} 12. Rxe4 {[%clk 0:02:23]}  Qxc3 {[%clk 0:00:53]} 13. bxc3 {[%clk 0:02:24]}  Nc6 {[%clk 0:00:54]} 14. Nf3 {[%clk 0:02:24]}  a6 {[%clk 0:00:50]} 15. Nd4 {[%clk 0:02:22]}  Bd7 {[%clk 0:00:46]} 16. Be2 {[%clk 0:02:17]}  Rfe8 {[%clk 0:00:46]} 17. Rxe8 {[%clk 0:02:15]}  Rxe8 {[%clk 0:00:47]} 18. Rd1 {[%clk 0:02:13]}  Ne5 {[%clk 0:00:43]} 19. Nf3 {[%clk 0:01:58]}  Bc6 {[%clk 0:00:41]} 20. Nxe5 {[%clk 0:01:56]}  Rxe5 {[%clk 0:00:42]} 21. g3 {[%clk 0:01:57]}  Rf5 {[%clk 0:00:38]} 22. f4 {[%clk 0:01:57]}  Rc5 {[%clk 0:00:35]} 23. c4 {[%clk 0:01:57]}  f5 {[%clk 0:00:34]} 24. Kb2 {[%clk 0:01:57]}  Kf6 {[%clk 0:00:25]} 25. a3 {[%clk 0:01:56]}  Ke7 {[%clk 0:00:25]} 26. Kc3 {[%clk 0:01:56]}  Ra5 {[%clk 0:00:24]} 27. Kb4 {[%clk 0:01:56]}  Ra4+ {[%clk 0:00:24]} 28. Kb3 {[%clk 0:01:57]}  Ra5 {[%clk 0:00:25]} 29. Rd4 {[%clk 0:01:58]}  Rc5 {[%clk 0:00:24]} 30. Bd3 {[%clk 0:01:58]}  a5 {[%clk 0:00:22]} 31. h3 {[%clk 0:01:52]}  b6 {[%clk 0:00:21]} 32. g4 {[%clk 0:01:52]}  Bd7 {[%clk 0:00:18]} 33. g5 {[%clk 0:01:49]}  Bc6 {[%clk 0:00:18]} 34. h4 {[%clk 0:01:50]}  Bf3 {[%clk 0:00:17]} 35. Kc3 {[%clk 0:01:48]}  Bc6 {[%clk 0:00:15]} 36. Kd2 {[%clk 0:01:49]}  Bf3 {[%clk 0:00:13]} 37. Bf1 {[%clk 0:01:49]}  Be4 {[%clk 0:00:12]} 38. Be2 {[%clk 0:01:48]}  b5 {[%clk 0:00:12]} 39. Kc3 {[%clk 0:01:46]}  Rc6 {[%clk 0:00:09]} 40. Bd3 {[%clk 0:01:44]}  Bg2 {[%clk 0:00:08]} 41. Kb2 {[%clk 0:01:37]}  Re6 {[%clk 0:00:07]} 42. cxb5 {[%clk 0:01:34]}  Rxe3 {[%clk 0:00:07]} 43. c4 {[%clk 0:01:28]}  Rh3 {[%clk 0:00:05]} 44. c5 {[%clk 0:01:28]}  Rxh4 {[%clk 0:00:05]} 45. c6 {[%clk 0:01:29]}  Rh2 {[%clk 0:00:04]} 46. Kc3 {[%clk 0:01:28]}  Rh3 {[%clk 0:00:04]} 47. Kd2 {[%clk 0:01:25]}  Rh2 {[%clk 0:00:04]} 48. Ke3 {[%clk 0:01:26]}  Rh3+ {[%clk 0:00:04]} 49. Kf2 {[%clk 0:01:27]}  Be4 {[%clk 0:00:05]} 50. Bxe4 {[%clk 0:01:25]}  fxe4 {[%clk 0:00:05]} 51. Rd7+ {[%clk 0:01:26]}  Ke6 {[%clk 0:00:06]} 52. Rxc7 {[%clk 0:01:27]}  Rxa3 {[%clk 0:00:06]} 53. b6 {[%clk 0:01:27]}  Rb3 {[%clk 0:00:07]} 54. b7 {[%clk 0:01:28]}  a4 {[%clk 0:00:07]} 55. Rc8 {[%clk 0:01:28]}  Kf5 {[%clk 0:00:07]} 56. b8=Q {[%clk 0:01:27]}  Rxb8 {[%clk 0:00:08]} 57. Rxb8 {[%clk 0:01:28]}  Kxf4 {[%clk 0:00:09]} 58. c7 {[%clk 0:01:29]} 1-0


[Site "https://www.chess.com"]

[Event "Titled Tuesday Blitz March 07 Early 2023"]
[White "Decuigniere, Tom"]
[Black "Hambleton, Aman"]
[WhiteFideId "26093820"]
[BlackFideId "2606577"]
[WhiteElo "2312"]
[BlackElo "2511"]
[Result "0-1"]
[Round "09"]
[TimeControl "180+2"]
[Date "2023.03.07"]
[WhiteClock "0:00:02"]
[BlackClock "0:00:03"]

1. c4 {[%clk 0:03:00]}  c5 {[%clk 0:02:57]} 2. Nc3 {[%clk 0:03:01]}  b6 {[%clk 0:02:57]} 3. Nf3 {[%clk 0:02:58]}  Bb7 {[%clk 0:02:58]} 4. e3 {[%clk 0:02:56]}  e6 {[%clk 0:02:56]} 5. Be2 {[%clk 0:02:53]}  Nf6 {[%clk 0:02:56]} 6. O-O {[%clk 0:02:52]}  Be7 {[%clk 0:02:52]} 7. d4 {[%clk 0:02:52]}  cxd4 {[%clk 0:02:52]} 8. exd4 {[%clk 0:02:53]}  d5 {[%clk 0:02:41]} 9. Ne5 {[%clk 0:02:42]}  dxc4 {[%clk 0:01:45]} 10. Bxc4 {[%clk 0:02:40]}  O-O {[%clk 0:01:43]} 11. Re1 {[%clk 0:02:31]}  Nc6 {[%clk 0:01:41]} 12. Be3 {[%clk 0:02:09]}  Rc8 {[%clk 0:01:35]} 13. Bb3 {[%clk 0:02:06]}  Nb4 {[%clk 0:01:21]} 14. Bg5 {[%clk 0:01:10]}  Nbd5 {[%clk 0:00:57]} 15. Rc1 {[%clk 0:00:58]}  Nxc3 {[%clk 0:00:58]} 16. bxc3 {[%clk 0:00:52]}  Ne4 {[%clk 0:00:58]} 17. Bxe7 {[%clk 0:00:47]}  Qxe7 {[%clk 0:00:59]} 18. Qd3 {[%clk 0:00:34]}  Nf6 {[%clk 0:00:50]} 19. Bd1 {[%clk 0:00:21]}  Qa3 {[%clk 0:00:34]} 20. Bb3 {[%clk 0:00:21]}  Bd5 {[%clk 0:00:29]} 21. c4 {[%clk 0:00:18]}  Be4 {[%clk 0:00:28]} 22. Qg3 {[%clk 0:00:14]}  Rfd8 {[%clk 0:00:20]} 23. Rcd1 {[%clk 0:00:14]}  Qb2 {[%clk 0:00:18]} 24. Qf4 {[%clk 0:00:11]}  Rxd4 {[%clk 0:00:13]} 25. Rxd4 {[%clk 0:00:07]}  Qxd4 {[%clk 0:00:14]} 26. Bc2 {[%clk 0:00:04]}  Qc3 {[%clk 0:00:06]} 27. Rxe4 {[%clk 0:00:02]}  Qxc2 {[%clk 0:00:06]} 28. Re1 {[%clk 0:00:02]}  Qxa2 {[%clk 0:00:04]} 29. h4 {[%clk 0:00:02]}  h6 {[%clk 0:00:04]} 30. h5 {[%clk 0:00:02]}  Qa5 {[%clk 0:00:03]} 31. g4 {[%clk 0:00:02]}  Qxe1+ {[%clk 0:00:03]} 0-1


[Site "https://www.chess.com"]

[Event "Titled Tuesday Blitz March 07 Early 2023"]
[White "Zhigalko, Sergei"]
[Black "Ozer, Omer Faruk"]
[WhiteFideId "13502956"]
[BlackFideId "6354564"]
[WhiteElo "2626"]
[BlackElo "2260"]
[Result "1-0"]
[Round "09"]
[TimeControl "180+2"]
[Date "2023.03.07"]
[WhiteClock "0:00:05"]
[BlackClock "0:00:14"]

1. e4 {[%clk 0:03:00]}  e5 {[%clk 0:02:58]} 2. Nf3 {[%clk 0:03:01]}  Nc6 {[%clk 0:02:58]} 3. Bc4 {[%clk 0:03:01]}  Nf6 {[%clk 0:02:58]} 4. d3 {[%clk 0:03:01]}  h6 {[%clk 0:02:58]} 5. O-O {[%clk 0:02:57]}  d6 {[%clk 0:02:58]} 6. c3 {[%clk 0:02:54]}  g6 {[%clk 0:02:58]} 7. Bb3 {[%clk 0:02:52]}  Bg7 {[%clk 0:02:58]} 8. Re1 {[%clk 0:02:52]}  O-O {[%clk 0:02:57]} 9. Nbd2 {[%clk 0:02:53]}  Kh7 {[%clk 0:02:42]} 10. Nf1 {[%clk 0:02:49]}  Qe7 {[%clk 0:02:29]} 11. Ng3 {[%clk 0:02:48]}  Nd7 {[%clk 0:02:25]} 12. d4 {[%clk 0:02:48]}  Nb6 {[%clk 0:02:22]} 13. h3 {[%clk 0:02:26]}  Bd7 {[%clk 0:02:12]} 14. a4 {[%clk 0:02:12]}  a5 {[%clk 0:02:12]} 15. Be3 {[%clk 0:02:13]}  exd4 {[%clk 0:02:01]} 16. Nxd4 {[%clk 0:01:58]}  Ne5 {[%clk 0:02:01]} 17. Qe2 {[%clk 0:01:54]}  Rae8 {[%clk 0:01:54]} 18. f4 {[%clk 0:01:51]}  Nc6 {[%clk 0:01:51]} 19. Nb5 {[%clk 0:01:51]}  Bc8 {[%clk 0:01:42]} 20. Rad1 {[%clk 0:01:37]}  Na8 {[%clk 0:01:27]} 21. Qf2 {[%clk 0:01:32]}  Nd8 {[%clk 0:01:21]} 22. e5 {[%clk 0:01:32]}  dxe5 {[%clk 0:01:17]} 23. Bc5 {[%clk 0:01:32]}  Qf6 {[%clk 0:01:15]} 24. Bxf8 {[%clk 0:01:26]}  Rxf8 {[%clk 0:01:15]} 25. fxe5 {[%clk 0:01:09]}  Qe7 {[%clk 0:01:13]} 26. Ne4 {[%clk 0:00:59]}  Nc6 {[%clk 0:01:07]} 27. Nf6+ {[%clk 0:00:57]}  Kh8 {[%clk 0:01:07]} 28. Qf4 {[%clk 0:00:39]}  Nb6 {[%clk 0:00:57]} 29. Kh1 {[%clk 0:00:38]}  Nd7 {[%clk 0:00:50]} 30. Nxd7 {[%clk 0:00:22]}  Bxd7 {[%clk 0:00:51]} 31. Nxc7 {[%clk 0:00:22]}  Bf5 {[%clk 0:00:51]} 32. Nd5 {[%clk 0:00:19]}  Qc5 {[%clk 0:00:51]} 33. Nf6 {[%clk 0:00:16]}  Qb6 {[%clk 0:00:47]} 34. Bd5 {[%clk 0:00:07]}  Qxb2 {[%clk 0:00:47]} 35. Qe3 {[%clk 0:00:06]}  Qa3 {[%clk 0:00:41]} 36. Bxc6 {[%clk 0:00:04]}  bxc6 {[%clk 0:00:41]} 37. Qd4 {[%clk 0:00:02]}  Be6 {[%clk 0:00:37]} 38. Qd6 {[%clk 0:00:02]}  Qxc3 {[%clk 0:00:34]} 39. Rc1 {[%clk 0:00:03]}  Qg3 {[%clk 0:00:32]} 40. Qxc6 {[%clk 0:00:03]}  Qh4 {[%clk 0:00:22]} 41. Rcd1 {[%clk 0:00:02]}  h5 {[%clk 0:00:16]} 42. Kg1 {[%clk 0:00:01]}  Bh6 {[%clk 0:00:15]} 43. Qe4 {[%clk 0:00:02]}  Qg3 {[%clk 0:00:15]} 44. Rf1 {[%clk 0:00:02]}  Bxh3 {[%clk 0:00:14]} 45. Qf3 {[%clk 0:00:02]}  Be3+ {[%clk 0:00:14]} 46. Kh1 {[%clk 0:00:02]}  Qxf3 {[%clk 0:00:13]} 47. Rxf3 {[%clk 0:00:02]}  Bg4 {[%clk 0:00:13]} 48. Nxg4 {[%clk 0:00:03]}  Bg5 {[%clk 0:00:13]} 49. Nf6 {[%clk 0:00:03]}  Kg7 {[%clk 0:00:13]} 50. Ne4 {[%clk 0:00:03]}  Bh4 {[%clk 0:00:12]} 51. Rd7 {[%clk 0:00:04]}  Rd8 {[%clk 0:00:13]} 52. Rxd8 {[%clk 0:00:04]}  Kh6 {[%clk 0:00:14]} 53. Rd7 {[%clk 0:00:03]}  Kg7 {[%clk 0:00:14]} 54. g3 {[%clk 0:00:04]}  Be7 {[%clk 0:00:14]} 55. Rxe7 {[%clk 0:00:05]} 1-0


[Site "https://www.chess.com"]

[Event "Titled Tuesday Blitz March 07 Early 2023"]
[White "Atakhan, Abtin"]
[Black "Domingo Nunez, Ruben"]
[WhiteFideId "22502203"]
[BlackFideId "22245570"]
[WhiteElo "2008"]
[BlackElo "2404"]
[Result "1-0"]
[Round "09"]
[TimeControl "180+2"]
[Date "2023.03.07"]
[WhiteClock "0:00:34"]
[BlackClock "0:02:16"]

1. c4 {[%clk 0:01:52]}  g6 {[%clk 0:02:58]} 2. Nc3 {[%clk 0:01:48]}  Bg7 {[%clk 0:02:59]} 3. Nf3 {[%clk 0:01:48]}  d6 {[%clk 0:02:59]} 4. d4 {[%clk 0:01:45]}  Nd7 {[%clk 0:02:59]} 5. e4 {[%clk 0:01:37]}  e5 {[%clk 0:02:59]} 6. Bg5 {[%clk 0:01:37]}  Ne7 {[%clk 0:02:56]} 7. Be2 {[%clk 0:01:30]}  h6 {[%clk 0:02:55]} 8. Be3 {[%clk 0:01:27]}  Nc6 {[%clk 0:02:55]} 9. d5 {[%clk 0:01:25]}  Ne7 {[%clk 0:02:55]} 10. Qd2 {[%clk 0:01:21]}  a5 {[%clk 0:02:55]} 11. g3 {[%clk 0:01:20]}  Nc5 {[%clk 0:02:50]} 12. O-O-O {[%clk 0:01:14]}  b6 {[%clk 0:02:50]} 13. Nh4 {[%clk 0:01:00]}  g5 {[%clk 0:02:42]} 14. Ng2 {[%clk 0:00:53]}  Bh3 {[%clk 0:02:42]} 15. Rhg1 {[%clk 0:00:51]}  f5 {[%clk 0:02:42]} 16. Bh5+ {[%clk 0:00:51]}  Kd7 {[%clk 0:02:40]} 17. Bxc5 {[%clk 0:00:51]}  bxc5 {[%clk 0:02:40]} 18. Ne3 {[%clk 0:00:50]}  f4 {[%clk 0:02:29]} 19. Ng4 {[%clk 0:00:36]}  Qc8 {[%clk 0:02:19]} 20. f3 {[%clk 0:00:35]}  Rf8 {[%clk 0:02:16]} 21. Nf2 {[%clk 0:00:34]}  Kd8 {[%clk 0:02:17]} 22. Nxh3 {[%clk 0:00:34]}  Qxh3 {[%clk 0:02:16]} 23. Bg4 {[%clk 0:00:34]} 1-0


[Site "https://www.chess.com"]